fUST/lending_fUST_20250121
["ID","MTS","AMOUNT","RATE_DAILY","PERIOD"]
[349803511,1737436250105,-500.0,0.00022191,3]
[349803512,1737436250114,-1253.69,0.00022191,3]
[349803513,1737436250124,-500.0,0.00022191,3]
[349803514,1737436250133,-500.0,0.00022191,3]
[349803515,1737436250142,-539.27,0.00022191,3]
[349803516,1737436250152,-859.92,0.00022191,3]
[349803517,1737436250161,-500.0,0.00022191,3]
[349803518,1737436250172,-500.0,0.00022191,3]
[349803519,1737436250182,-1244.51,0.00022191,3]
[349803520,1737436250191,-500.0,0.00022191,3]
[349803521,1737436250200,-500.0,0.00022191,3]
[349803522,1737436250209,-500.0,0.00022191,3]
[349803523,1737436250219,-600.15409282,0.00022191,3]
[349803525,1737436250228,-500.0,0.00022191,3]
[349803527,1737436250237,-856.94,0.00022191,3]
[349803529,1737436250247,-500.0,0.00022191,3]
[349803531,1737436250257,-500.0,0.00022191,3]
[349803533,1737436250266,-190.84379696,0.00022191,3]
[349803535,1737436250275,-500.0,0.00022191,3]
[349803537,1737436250285,-337.30021685,0.00022191,3]
[349803539,1737436250294,-565.02,0.00022191,3]
[349803541,1737436250305,-850.13,0.00022191,3]
[349803543,1737436250314,-500.0,0.00022191,3]
[349803545,1737436250323,-500.0,0.00022191,3]
[349803547,1737436250333,-511.72,0.00022191,3]
[349803549,1737436250342,-500.0,0.00022191,3]
[349803551,1737436250352,-557.60149329,0.00022191,3]
[349803553,1737436250361,-500.0,0.00022191,3]
[349803555,1737436250370,-500.0,0.00022191,3]
[349803557,1737436250379,-500.0,0.00022191,3]
[349803559,1737436250389,-846.61,0.00022191,3]
[349803561,1737436250399,-500.0,0.00022191,3]
[349803563,1737436250408,-500.0,0.00022191,3]
[349803565,1737436250417,-510.96,0.00022191,3]
[349803567,1737436250426,-1671.98,0.00022191,2]
[349803569,1737436250435,-500.0,0.00022191,3]
[349803571,1737436250444,-500.0,0.00022191,3]
[349803573,1737436250454,-500.0,0.00022191,3]
[349803575,1737436250464,-1863.02,0.00022191,3]
[349803577,1737436250474,-7275.37,0.00022191,3]
[349803579,1737436250484,-500.0,0.00022191,3]
[349803582,1737436250493,-500.0,0.00022191,3]
[349803583,1737436250503,-5517.57,0.00022191,3]
[349803585,1737436250513,-500.0,0.00022191,3]
[349803588,1737436250525,-500.0,0.00022191,3]
[349803590,1737436250534,-2016.17,0.00022191,3]
[349803592,1737436250544,-500.0,0.00022191,3]
[349803594,1737436250556,-718.57,0.00022191,3]
[349803596,1737436250565,-1581.02,0.00022191,3]
[349803598,1737436250575,-500.0,0.00022191,3]
[349803600,1737436250585,-849.72,0.00022191,3]
[349803602,1737436250595,-500.0,0.00022191,3]
[349803604,1737436250605,-500.0,0.00022191,3]
[349803606,1737436250614,-1294.2,0.00022191,3]
[349803608,1737436250623,-500.0,0.00022191,3]
[349803610,1737436250632,-309.07688405,0.00022191,3]
[349803612,1737436250641,-567.86,0.00022191,3]
[349803614,1737436250651,-500.0,0.00022191,3]
[349803616,1737436250660,-795.86,0.00022191,3]
[349803618,1737436250669,-500.0,0.00022191,3]
[349803619,1737436250678,-500.0,0.00022191,3]
[349803622,1737436250688,-2490.81,0.00022191,3]
[349803624,1737436250697,-500.0,0.00022191,3]
[349803625,1737436250707,-602.21,0.00022191,3]
[349803627,1737436250716,-598.1,0.00022191,3]
[349803628,1737436250725,-500.0,0.00022191,3]
[349803629,1737436250734,-906.2,0.00022191,3]
[349803630,1737436250743,-500.0,0.00022191,3]
[349803631,1737436250755,-500.0,0.00022191,3]
[349803632,1737436250765,-500.0,0.00022191,3]
[349803633,1737436250774,-500.0,0.00022191,3]
[349803634,1737436250784,-500.0,0.00022191,3]
[349803635,1737436250794,-500.0,0.00022191,3]
[349803636,1737436250804,-500.0,0.00022191,3]
[349803637,1737436250813,-500.0,0.00022191,3]
[349803638,1737436250823,-517.62,0.00022191,3]
[349803639,1737436250832,-500.0,0.00022191,3]
[349803640,1737436250842,-500.0,0.00022191,3]
[349803641,1737436250851,-35047.46,0.00022191,3]
[349803642,1737436250860,-292.0835566,0.00022191,3]
[349803643,1737436250870,-3672.32,0.00022191,3]
[349803644,1737436250879,-500.0,0.00022191,3]
[349803645,1737436250889,-8328.07,0.00022191,3]
[349803646,1737436250898,-16648.53,0.00022191,3]
[349803647,1737436250908,-989.27,0.00022191,3]
[349803649,1737436250919,-500.0,0.00022191,3]
[349803651,1737436250928,-2149.07,0.00022191,3]
[349803652,1737436250938,-500.0,0.00022191,3]
[349803654,1737436250948,-500.0,0.00022191,3]
[349803656,1737436250958,-500.0,0.00022191,3]
[349803658,1737436250967,-1654.0,0.00022191,3]
[349803659,1737436250977,-714.08,0.00022191,3]
[349803661,1737436250987,-809.87,0.00022191,3]
[349803662,1737436250996,-500.0,0.00022191,3]
[349803663,1737436251006,-1737.78,0.00022191,3]
[349803664,1737436251015,-520.12,0.00022191,3]
[349803665,1737436251025,-500.0,0.00022191,3]
[349803666,1737436251035,-941.94,0.00022191,3]
[349803667,1737436251044,-668.23,0.00022191,3]
[349803668,1737436251056,-500.0,0.00022191,3]
[349803669,1737436251065,-4729.29,0.00022191,3]
[349803670,1737436251074,-760.16,0.00022191,3]
[349803671,1737436251084,-500.0,0.00022191,3]
[349803672,1737436251093,-500.0,0.00022191,3]
[349803673,1737436251103,-1266.7,0.00022191,3]
[349803674,1737436251114,-500.0,0.00022191,3]
[349803675,1737436251124,-513.67780787,0.00022191,3]
[349803676,1737436251134,-836.8,0.00022191,3]
[349803677,1737436251144,-924.68,0.00022191,3]
[349803678,1737436251154,-2889.09,0.00022191,3]
[349803679,1737436251164,-500.0,0.00022191,3]
[349803680,1737436251174,-966.7,0.00022191,3]
[349803682,1737436251184,-1666.36,0.00022191,3]
[349803684,1737436251194,-416.17227912,0.00022191,3]
[349803686,1737436251205,-725.57,0.00022191,3]
[349803688,1737436251215,-500.0,0.00022191,3]
[349803690,1737436251225,-4625.09,0.00022191,3]
[349803692,1737436251235,-4079.3,0.00022191,3]
[349803694,1737436251244,-522.87,0.00022191,3]
[349803696,1737436251254,-500.0,0.00022191,3]
[349803698,1737436251264,-7980.33,0.00022191,3]
[349803700,1737436251274,-3321.54,0.00022191,3]
[349803702,1737436251284,-2125.78,0.00022191,3]
[349803704,1737436251294,-700.2,0.00022191,3]
[349803705,1737436251307,-500.0,0.00022191,3]
[349803706,1737436251316,-500.0,0.00022191,3]
[349803708,1737436251326,-12319.31,0.00022191,3]
[349803710,1737436251335,-654.58,0.00022191,3]
[349803711,1737436251344,-500.0,0.00022191,3]
[349803713,1737436251354,-1504.03,0.00022191,3]
[349803714,1737436251363,-581.59,0.00022191,3]
[349803716,1737436251373,-1705.49,0.00022191,3]
[349803717,1737436251383,-1357.55,0.00022191,3]
[349803718,1737436251392,-500.0,0.00022191,3]
[349803719,1737436251402,-500.0,0.00022191,3]
[349803720,1737436251412,-500.0,0.00022191,3]
[349803721,1737436251421,-500.0,0.00022191,3]
[349803722,1737436251430,-841.13,0.00022191,3]
[349803723,1737436251441,-938.07,0.00022191,3]
[349803724,1737436251450,-688.07,0.00022191,3]
[349803725,1737436251460,-500.0,0.00022191,3]
[349803726,1737436251470,-2173.27,0.00022191,3]
[349803727,1737436251480,-500.0,0.00022191,3]
[349803728,1737436251490,-544.6,0.00022191,3]
[349803730,1737436251500,-47576.26,0.00022191,3]
[349803731,1737436251510,-676.95,0.00022191,3]
[349803732,1737436251520,-500.0,0.00022191,3]
[349803733,1737436251530,-500.0,0.00022191,3]
[349803735,1737436251540,-3665.17,0.00022191,3]
[349803736,1737436251551,-500.0,0.00022191,3]
[349803738,1737436251560,-2353.99,0.00022191,3]
[349803740,1737436251570,-500.0,0.00022191,3]
[349803745,1737436251714,-707.0,0.00022192,3]
[349803747,1737436251724,-225.6,0.00022197,6]
[349803749,1737436251734,-151.0,0.000222,10]
[349803751,1737436251744,-192.89355271,0.00022222,2]
[349803753,1737436251756,-570.28908993,0.00022304,2]
[349803755,1737436251766,-500.0,0.00022328,3]
[349803757,1737436251775,-500.0,0.00022328,3]
[349803758,1737436251785,-500.0,0.00022328,3]
[349803759,1737436251795,-1235.39,0.00022328,3]
[349803760,1737436251806,-500.0,0.00022328,3]
[349803761,1737436251816,-500.0,0.00022328,3]
[349803762,1737436251826,-500.0,0.00022328,3]
[349803763,1737436251836,-796.12,0.00022328,3]
[349803764,1737436251845,-500.0,0.00022328,3]
[349803765,1737436251854,-500.0,0.00022328,3]
[349803766,1737436251864,-500.0,0.00022328,3]
[349803767,1737436251874,-998.97,0.00022328,3]
[349803768,1737436251883,-604.25,0.00022328,3]
[349803769,1737436251893,-188.0,0.00022328,2]
[349803770,1737436251902,-500.0,0.00022328,3]
[349803771,1737436251911,-500.0,0.00022328,3]
[349803772,1737436251920,-500.0,0.00022328,3]
[349803773,1737436251929,-500.0,0.00022328,3]
[349803774,1737436251939,-500.0,0.00022328,3]
[349803775,1737436251949,-500.0,0.00022328,3]
[349803776,1737436251958,-500.0,0.00022328,3]
[349803777,1737436251968,-500.0,0.00022328,3]
[349803778,1737436251977,-500.0,0.00022328,3]
[349803779,1737436251986,-500.0,0.00022328,3]
[349803780,1737436251995,-548.78,0.00022328,3]
[349803781,1737436252005,-500.0,0.00022328,3]
[349803782,1737436252014,-300.0,0.00022328,3]
[349803783,1737436252023,-500.0,0.00022328,3]
[349803784,1737436252034,-500.0,0.00022328,3]
[349803785,1737436252044,-500.0,0.00022328,3]
[349803786,1737436252054,-500.0,0.00022328,3]
[349803787,1737436252063,-500.0,0.00022328,3]
[349803788,1737436252073,-500.0,0.00022328,3]
[349803789,1737436252082,-500.0,0.00022328,3]
[349803790,1737436252093,-500.0,0.00022328,3]
[349803791,1737436252102,-500.0,0.00022328,3]
[349803792,1737436252112,-500.0,0.00022328,3]
[349803793,1737436252121,-500.0,0.00022328,3]
[349803794,1737436252131,-1333.83,0.00022328,3]
[349803795,1737436252140,-500.0,0.00022328,3]
[349803796,1737436252153,-500.0,0.00022328,3]
[349803797,1737436252162,-500.0,0.00022328,3]
[349803798,1737436252171,-500.0,0.00022328,3]
[349803799,1737436252181,-1527.69,0.00022328,3]
[349803800,1737436252190,-500.0,0.00022328,3]
[349803801,1737436252200,-500.0,0.00022328,3]
[349803802,1737436252209,-500.0,0.00022328,3]
[349803803,1737436252219,-500.0,0.00022328,3]
[349803804,1737436252229,-953.42,0.00022328,3]
[349803805,1737436252238,-500.0,0.00022328,3]
[349803806,1737436252247,-500.0,0.00022328,3]
[349803807,1737436252258,-538.06997693,0.00022328,3]
[349803808,1737436252268,-500.0,0.00022328,3]
[349803809,1737436252278,-457.02894803,0.00022328,3]
[349803810,1737436252287,-500.0,0.00022328,3]
[349803811,1737436252297,-500.0,0.00022328,3]
[349803812,1737436252307,-1913.55,0.00022328,3]
[349803813,1737436252317,-500.0,0.00022328,3]
[349803814,1737436252326,-822.24,0.00022328,3]
[349803815,1737436252335,-500.0,0.00022328,3]
[349803816,1737436252344,-500.0,0.00022328,3]
[349803817,1737436252355,-500.0,0.00022328,3]
[349803818,1737436252365,-824.53,0.00022328,3]
[349803819,1737436252374,-500.0,0.00022328,3]
[349803820,1737436252384,-1171.5,0.00022328,3]
[349803821,1737436252393,-757.81,0.00022328,3]
[349803822,1737436252402,-500.0,0.00022328,3]
[349803823,1737436252412,-730.74,0.00022328,3]
[349803824,1737436252421,-500.0,0.00022328,3]
[349803825,1737436252431,-1169.85,0.00022328,3]
[349803826,1737436252440,-717.4,0.00022328,3]
[349803827,1737436252450,-1423.53,0.00022328,3]
[349803828,1737436252459,-624.85,0.00022328,3]
[349803829,1737436252468,-500.0,0.00022328,3]
[349803830,1737436252478,-500.0,0.00022328,3]
[349803831,1737436252489,-813.03,0.00022328,3]
[349803832,1737436252498,-263.0,0.00022328,3]
[349803833,1737436252507,-500.0,0.00022328,3]
[349803834,1737436252516,-500.0,0.00022328,3]
[349803835,1737436252526,-500.0,0.00022328,3]
[349803836,1737436252535,-814.58,0.00022328,3]
[349803837,1737436252544,-500.0,0.00022328,3]
[349803838,1737436252555,-500.0,0.00022328,3]
[349803839,1737436252565,-827.27,0.00022328,3]
[349803840,1737436252576,-500.0,0.00022328,3]
[349803841,1737436252586,-747.15,0.00022328,3]
[349803842,1737436252596,-378.85643574,0.00022328,3]
[349803843,1737436252606,-681.43,0.00022328,3]
[349803844,1737436252615,-500.0,0.00022328,3]
[349803845,1737436252624,-500.0,0.00022328,3]
[349803846,1737436252633,-500.0,0.00022328,3]
[349803847,1737436252643,-500.0,0.00022328,3]
[349803848,1737436252653,-500.0,0.00022328,3]
[349803849,1737436252669,-497.03860238,0.00022328,3]
[349803850,1737436252680,-500.0,0.00022328,3]
[349803851,1737436252689,-500.0,0.00022328,3]
[349803852,1737436252699,-500.0,0.00022328,3]
[349803853,1737436252709,-500.0,0.00022328,3]
[349803854,1737436252720,-998.18,0.00022328,3]
[349803855,1737436252729,-500.81,0.00022328,3]
[349803856,1737436252740,-500.0,0.00022328,3]
[349803857,1737436252751,-500.0,0.00022328,3]
[349803858,1737436252762,-500.0,0.00022328,3]
[349803859,1737436252771,-1253.69,0.00022328,3]
[349803860,1737436252781,-500.0,0.00022328,3]
[349803861,1737436252790,-500.0,0.00022328,3]
[349803862,1737436252803,-539.27,0.00022328,3]
[349803863,1737436252812,-859.92,0.00022328,3]
[349803864,1737436252825,-500.0,0.00022328,3]
[349803865,1737436252835,-500.0,0.00022328,3]
[349803866,1737436252844,-1244.51,0.00022328,3]
[349803867,1737436252853,-470.65454142,0.00022328,3]
[349803868,1737436252862,-203.25959128,0.00022328,3]
[349803869,1737436252872,-500.0,0.00022328,3]
[349803870,1737436252882,-500.0,0.00022328,3]
[349803871,1737436252891,-856.94,0.00022328,3]
[349803872,1737436252900,-500.0,0.00022328,3]
[349803873,1737436252909,-500.0,0.00022328,3]
[349803874,1737436252919,-500.0,0.00022328,3]
[349803875,1737436252928,-565.02,0.00022328,3]
[349803876,1737436252937,-850.13,0.00022328,3]
[349803877,1737436252946,-500.0,0.00022328,3]
[349803878,1737436252955,-500.0,0.00022328,3]
[349803879,1737436252965,-511.72,0.00022328,3]
[349803880,1737436252974,-500.0,0.00022328,3]
[349803881,1737436252985,-500.0,0.00022328,3]
[349803882,1737436252995,-500.0,0.00022328,3]
[349803883,1737436253005,-500.0,0.00022328,3]
[349803884,1737436253015,-846.61,0.00022328,3]
[349803885,1737436253024,-500.0,0.00022328,3]
[349803886,1737436253034,-500.0,0.00022328,3]
[349803887,1737436253044,-510.96,0.00022328,3]
[349803888,1737436253056,-1671.98,0.00022328,2]
[349803889,1737436253067,-606.4300019,0.00022328,3]
[349803890,1737436253077,-500.0,0.00022328,3]
[349803891,1737436253087,-500.0,0.00022328,3]
[349803892,1737436253097,-1863.02,0.00022328,3]
[349803893,1737436253106,-7275.37,0.00022328,3]
[349803894,1737436253116,-500.0,0.00022328,3]
[349803895,1737436253126,-500.0,0.00022328,3]
[349803896,1737436253135,-5517.57,0.00022328,3]
[349803897,1737436253144,-500.0,0.00022328,3]
[349803898,1737436253153,-500.0,0.00022328,3]
[349803899,1737436253163,-2016.17,0.00022328,3]
[349803900,1737436253172,-500.0,0.00022328,3]
[349803901,1737436253181,-718.57,0.00022328,3]
[349803902,1737436253190,-1581.02,0.00022328,3]
[349803903,1737436253200,-500.0,0.00022328,3]
[349803904,1737436253210,-849.72,0.00022328,3]
[349803905,1737436253219,-500.0,0.00022328,3]
[349803906,1737436253229,-500.0,0.00022328,3]
[349803907,1737436253239,-1294.2,0.00022328,3]
[349803908,1737436253249,-500.0,0.00022328,3]
[349803909,1737436253259,-567.86,0.00022328,3]
[349803910,1737436253268,-500.0,0.00022328,3]
[349803911,1737436253279,-795.86,0.00022328,3]
[349803912,1737436253292,-500.0,0.00022328,3]
[349803913,1737436253306,-500.0,0.00022328,3]
[349803914,1737436253315,-2490.81,0.00022328,3]
[349803915,1737436253325,-602.21,0.00022328,3]
[349803916,1737436253335,-598.1,0.00022328,3]
[349803917,1737436253345,-239.58712104,0.00022328,3]
[349803918,1737436253354,-906.2,0.00022328,3]
[349803919,1737436253364,-500.0,0.00022328,3]
[349803920,1737436253374,-500.0,0.00022328,3]
[349803921,1737436253384,-500.0,0.00022328,3]
[349803922,1737436253394,-500.0,0.00022328,3]
[349803923,1737436253404,-500.0,0.00022328,3]
[349803924,1737436253414,-500.0,0.00022328,3]
[349803925,1737436253424,-500.0,0.00022328,3]
[349803926,1737436253434,-500.0,0.00022328,3]
[349803927,1737436253444,-517.62,0.00022328,3]
[349803928,1737436253454,-500.0,0.00022328,3]
[349803929,1737436253463,-500.0,0.00022328,3]
[349803930,1737436253473,-35047.46,0.00022328,3]
[349803931,1737436253483,-3672.32,0.00022328,3]
[349803932,1737436253493,-500.0,0.00022328,3]
[349803933,1737436253503,-8328.07,0.00022328,3]
[349803934,1737436253513,-16648.53,0.00022328,3]
[349803935,1737436253524,-989.27,0.00022328,3]
[349803936,1737436253535,-2149.07,0.00022328,3]
[349803937,1737436253546,-500.0,0.00022328,3]
[349803938,1737436253563,-500.0,0.00022328,3]
[349803939,1737436253573,-500.0,0.00022328,3]
[349803940,1737436253584,-1654.0,0.00022328,3]
[349803941,1737436253596,-714.08,0.00022328,3]
[349803942,1737436253608,-809.87,0.00022328,3]
[349803943,1737436253618,-1737.78,0.00022328,3]
[349803944,1737436253628,-520.12,0.00022328,3]
[349803945,1737436253639,-500.0,0.00022328,3]
[349803946,1737436253787,-941.94,0.00022328,3]
[349803947,1737436253798,-668.23,0.00022328,3]
[349803948,1737436253817,-500.0,0.00022328,3]
[349803949,1737436253828,-4729.29,0.00022328,3]
[349803950,1737436253840,-760.16,0.00022328,3]
[349803951,1737436253851,-500.0,0.00022328,3]
[349803952,1737436253863,-500.0,0.00022328,3]
[349803953,1737436253874,-1266.7,0.00022328,3]
[349803954,1737436253884,-500.0,0.00022328,3]
[349803955,1737436253895,-836.8,0.00022328,3]
[349803956,1737436253906,-924.68,0.00022328,3]
[349803957,1737436253916,-2889.09,0.00022328,3]
[349803958,1737436253927,-500.0,0.00022328,3]
[349803959,1737436253937,-966.7,0.00022328,3]
[349803960,1737436253947,-1666.36,0.00022328,3]
[349803961,1737436253957,-725.57,0.00022328,3]
[349803962,1737436253968,-500.0,0.00022328,3]
[349803963,1737436253977,-4625.09,0.00022328,3]
[349803964,1737436253988,-4079.3,0.00022328,3]
[349803965,1737436253998,-522.87,0.00022328,3]
[349803966,1737436254008,-500.0,0.00022328,3]
[349803967,1737436254018,-7980.33,0.00022328,3]
[349803968,1737436254028,-3321.54,0.00022328,3]
[349803969,1737436254038,-2125.78,0.00022328,3]
[349803970,1737436254048,-700.2,0.00022328,3]
[349803971,1737436254061,-500.0,0.00022328,3]
[349803972,1737436254071,-500.0,0.00022328,3]
[349803973,1737436254080,-12319.31,0.00022328,3]
[349803974,1737436254090,-654.58,0.00022328,3]
[349803975,1737436254100,-379.41956501,0.00022328,3]
[349803976,1737436254110,-1504.03,0.00022328,3]
[349803977,1737436254119,-581.59,0.00022328,3]
[349803978,1737436254129,-1705.49,0.00022328,3]
[349803979,1737436254139,-1357.55,0.00022328,3]
[349803980,1737436254148,-500.0,0.00022328,3]
[349803981,1737436254158,-500.0,0.00022328,3]
[349803982,1737436254168,-500.0,0.00022328,3]
[349803983,1737436254177,-500.0,0.00022328,3]
[349803984,1737436254187,-841.13,0.00022328,3]
[349803985,1737436254199,-938.07,0.00022328,3]
[349803986,1737436254209,-688.07,0.00022328,3]
[349803987,1737436254219,-500.0,0.00022328,3]
[349803988,1737436254228,-2173.27,0.00022328,3]
[349803989,1737436254237,-500.0,0.00022328,3]
[349803990,1737436254247,-544.6,0.00022328,3]
[349803991,1737436254256,-47576.26,0.00022328,3]
[349803992,1737436254266,-676.95,0.00022328,3]
[349803993,1737436254275,-500.0,0.00022328,3]
[349803994,1737436254286,-500.0,0.00022328,3]
[349803995,1737436254296,-3665.17,0.00022328,3]
[349803996,1737436254309,-500.0,0.00022328,3]
[349803997,1737436254319,-2353.99,0.00022328,3]
[349803998,1737436254328,-500.0,0.00022328,3]
[349803999,1737436254338,-5346.72402757,0.00022329,2]
[349804000,1737436254347,-500.0,0.00022373,2]
[349804001,1737436254357,-225.6,0.00022427,6]
[349804002,1737436254367,-151.0,0.00022446,2]
[349804003,1737436254377,-1200.0,0.00022446,2]
[349804004,1737436254387,-200.14,0.00022465,3]
[349804005,1737436254398,-500.0,0.00022465,3]
[349804006,1737436254408,-500.0,0.00022465,3]
[349804007,1737436254419,-500.0,0.00022465,3]
[349804008,1737436254429,-500.0,0.00022465,3]
[349804009,1737436254438,-500.0,0.00022465,3]
[349804010,1737436254448,-1235.39,0.00022465,3]
[349804011,1737436254458,-500.0,0.00022465,3]
[349804012,1737436254469,-500.0,0.00022465,3]
[349804013,1737436254479,-500.0,0.00022465,3]
[349804014,1737436254488,-796.12,0.00022465,3]
[349804015,1737436254498,-500.0,0.00022465,3]
[349804016,1737436254507,-500.0,0.00022465,3]
[349804017,1737436254517,-500.0,0.00022465,3]
[349804018,1737436254527,-998.97,0.00022465,3]
[349804019,1737436254537,-604.25,0.00022465,3]
[349804020,1737436254546,-188.0,0.00022465,2]
[349804021,1737436254560,-500.0,0.00022465,3]
[349804022,1737436254570,-500.0,0.00022465,3]
[349804023,1737436254580,-500.0,0.00022465,3]
[349804024,1737436254589,-500.0,0.00022465,3]
[349804025,1737436254599,-500.0,0.00022465,3]
[349804026,1737436254608,-500.0,0.00022465,3]
[349804027,1737436254618,-500.0,0.00022465,3]
[349804028,1737436254627,-500.0,0.00022465,3]
[349804029,1737436254638,-500.0,0.00022465,3]
[349804030,1737436254647,-511.05316783,0.00022465,3]
[349804031,1737436254656,-548.78,0.00022465,3]
[349804032,1737436254665,-500.0,0.00022465,3]
[349804033,1737436254675,-242.59725368,0.00022465,3]
[349804034,1737436254684,-509.67136178,0.00022465,3]
[349804035,1737436254694,-500.0,0.00022465,3]
[349804036,1737436254703,-500.0,0.00022465,3]
[349804037,1737436254712,-500.0,0.00022465,3]
[349804038,1737436254722,-178.04617312,0.00022465,3]
[349804039,1737436254731,-455.16088187,0.00022465,3]
[349804040,1737436254740,-500.0,0.00022465,3]
[349804041,1737436254750,-500.0,0.00022465,3]
[349804042,1737436254762,-500.0,0.00022465,3]
[349804043,1737436254771,-500.0,0.00022465,3]
[349804044,1737436254781,-500.0,0.00022465,3]
[349804045,1737436254791,-1333.83,0.00022465,3]
[349804046,1737436254803,-500.0,0.00022465,3]
[349804047,1737436254813,-500.0,0.00022465,3]
[349804048,1737436254822,-519.13863435,0.00022465,3]
[349804049,1737436254833,-500.0,0.00022465,3]
[349804050,1737436254842,-1527.69,0.00022465,3]
[349804051,1737436254852,-500.0,0.00022465,3]
[349804052,1737436254861,-500.0,0.00022465,3]
[349804053,1737436254871,-500.0,0.00022465,3]
[349804054,1737436254881,-500.0,0.00022465,3]
[349804055,1737436254891,-953.42,0.00022465,3]
[349804056,1737436254900,-500.0,0.00022465,3]
[349804057,1737436254910,-500.0,0.00022465,3]
[349804058,1737436254919,-500.0,0.00022465,3]
[349804059,1737436254929,-500.0,0.00022465,3]
[349804060,1737436254939,-191.928982,0.00022465,3]
[349804061,1737436254948,-1913.55,0.00022465,3]
[349804062,1737436254958,-199.09896474,0.00022465,3]
[349804063,1737436254967,-822.24,0.00022465,3]
[349804064,1737436254977,-500.0,0.00022465,3]
[349804065,1737436254987,-500.0,0.00022465,3]
[349804066,1737436254997,-824.53,0.00022465,3]
[349804067,1737436255006,-500.0,0.00022465,3]
[349804068,1737436255016,-500.0,0.00022465,3]
[349804069,1737436255025,-1171.5,0.00022465,3]
[349804070,1737436255034,-757.81,0.00022465,3]
[349804071,1737436255043,-500.0,0.00022465,3]
[349804072,1737436255056,-730.74,0.00022465,3]
[349804073,1737436255065,-500.0,0.00022465,3]
[349804074,1737436255075,-717.4,0.00022465,3]
[349804075,1737436255084,-1169.85,0.00022465,3]
[349804076,1737436255093,-1423.53,0.00022465,3]
[349804077,1737436255102,-624.85,0.00022465,3]
[349804078,1737436255111,-500.0,0.00022465,3]
[349804079,1737436255121,-500.0,0.00022465,3]
[349804080,1737436255130,-813.03,0.00022465,3]
[349804081,1737436255139,-500.0,0.00022465,3]
[349804082,1737436255149,-500.0,0.00022465,3]
[349804083,1737436255159,-500.0,0.00022465,3]
[349804084,1737436255172,-814.58,0.00022465,3]
[349804085,1737436255182,-500.0,0.00022465,3]
[349804086,1737436255192,-500.0,0.00022465,3]
[349804087,1737436255201,-827.27,0.00022465,3]
[349804088,1737436255210,-342.0515566,0.00022465,3]
[349804089,1737436255220,-747.15,0.00022465,3]
[349804090,1737436255229,-681.43,0.00022465,3]
[349804091,1737436255239,-553.17055382,0.00022465,3]
[349804092,1737436255248,-500.0,0.00022465,3]
[349804093,1737436255258,-500.0,0.00022465,3]
[349804094,1737436255267,-500.0,0.00022465,3]
[349804095,1737436255277,-259.84897959,0.00022465,3]
[349804096,1737436255286,-500.0,0.00022465,3]
[349804097,1737436255295,-648.24938065,0.00022465,3]
[349804098,1737436255307,-500.0,0.00022465,3]